bitfinex-derivatives/quotes_ETHF0:USTF0_20250101
["timestamp","ask_amount","ask_price","bid_price","bid_amount"]
[1735731883211,3.2078,3344.1,3343.7,0.4321]
[1735731883808,0.29964,3343.9,3343.7,0.4321]
[1735731884017,0.29964,3343.9,3343.7,0.73174]
[1735731884314,0.29959,3344.4,3343.9,0.29963]
[1735731884511,0.29962,3344.1,3343.7,0.4321]
[1735731884715,3.2078,3344.5,3343.8,0.29963]
[1735731884908,0.29962,3344.1,3343.8,0.29963]
[1735731885109,0.29962,3344.0,3343.8,0.29963]
[1735731887215,0.2996,3344.3,3343.9,5.48356051]
[1735731887412,0.2996,3344.3,3344.1,0.2996]
[1735731887627,0.2996,3344.3,3344.2,0.4465]
[1735731890118,3.95663,3345.1,3344.2,2.72226051]
[1735731890416,0.29956,3344.8,3344.6,0.29957]
[1735731891019,0.29955,3344.8,3344.6,0.29957]
[1735731891323,0.29954,3344.9,3344.7,0.29955]
[1735731891618,0.29954,3344.9,3344.8,0.4511]
[1735731891809,0.29955,3344.8,3344.6,0.29956]
[1735731892729,0.29955,3344.8,3344.5,3.50737]
[1735731893211,0.29955,3344.8,3344.6,0.29956]
[1735731893816,3.2078,3345.1,3344.5,3.6406]
[1735731894115,0.29957,3344.7,3344.5,0.4328]
[1735731894316,3.2078,3345.1,3344.5,0.4328]
[1735731894721,0.29957,3344.6,3344.5,0.4328]
[1735731895017,3.2078,3345.1,3344.5,0.4328]
[1735731895217,0.29957,3344.6,3344.5,0.4328]
[1735731895417,0.29957,3344.6,3344.5,1.6168]
[1735731896120,0.4441,3345.0,3344.5,1.6168]
[1735731896315,0.29957,3344.6,3344.5,1.6168]
[1735731897720,0.29957,3344.6,3344.5,0.4328]
[1735731899123,0.29957,3344.6,3344.5,0.73237]
[1735731899324,0.29956,3344.7,3344.5,0.73237]
[1735731899526,0.29955,3344.8,3344.6,0.29956]
[1735731899722,0.29956,3344.7,3344.5,0.73237]
[1735731901019,0.29957,3344.6,3344.5,0.4328]
[1735731901323,0.4441,3345.0,3344.5,0.4328]
[1735731901525,0.29957,3344.7,3344.5,0.73237]
[1735731902323,0.29957,3344.6,3344.5,0.73237]
[1735731902724,0.29956,3344.7,3344.5,0.73237]
[1735731902924,0.29954,3344.9,3344.7,0.29955]
[1735731903230,3.2078,3345.1,3344.5,0.4328]
[1735731903427,0.74595,3344.8,3344.6,40.8]
[1735731903729,0.74595,3344.8,3344.7,0.29956]
[1735731904125,0.4464,3344.8,3344.7,0.29956]
[1735731907034,0.74595,3344.8,3344.7,0.29956]
[1735731907333,0.29953,3345.0,3344.8,0.29954]
[1735731907529,0.29953,3345.0,3344.9,0.4511]
[1735731908943,3.50733,3345.1,3344.9,0.75064]
[1735731909149,3.50733,3345.1,3345.0,0.4591]
[1735731909442,3.50733,3345.1,3345.0,0.8915]
[1735731910544,3.2078,3345.1,3344.9,0.4511]
[1735731910740,0.29953,3345.0,3344.9,0.4511]
[1735731910946,3.2078,3345.1,3344.9,0.4511]
[1735731911243,0.29953,3345.0,3344.9,0.4511]
[1735731912540,0.29953,3345.0,3344.9,0.75064]
[1735731912843,3.50733,3345.1,3344.9,0.75064]
[1735731913438,0.29953,3345.1,3344.9,0.75064]
[1735731913949,0.29953,3345.0,3344.9,0.4511]
[1735731914143,0.29953,3345.0,3344.9,0.75064]
[1735731914842,0.29953,3345.1,3345.0,0.29953]
[1735731915043,0.29953,3345.1,3345.0,1.48453]
[1735731915239,0.29952,3345.2,3345.0,1.48453]
[1735731915446,0.4275,3345.3,3345.0,1.48453]
[1735731915647,0.29951,3345.2,3345.1,0.4281]
[1735731916235,0.29951,3345.2,3345.1,0.72762]
[1735731916755,0.29951,3345.2,3345.1,0.4281]
[1735731917142,0.29951,3345.2,3345.1,0.8754]
[1735731918443,0.29951,3345.2,3345.1,1.17492]
[1735731918644,0.29951,3345.2,3345.1,0.8754]
[1735731919764,0.29956,3344.8,3344.7,0.29956]
[1735731919953,0.29956,3344.8,3344.7,1.185]
[1735731920142,0.74883,3345.1,3344.6,3.657]
[1735731920339,0.75406,3344.7,3344.6,4.842]
[1735731920747,0.75406,3344.7,3344.6,5.14157]
[1735731920945,3.2078,3345.4,3344.6,5.46986628]
[1735731921151,0.74202,3345.2,3345.0,0.29952]
[1735731921353,0.74202,3345.2,3345.1,0.74872]
[1735731921646,0.4425,3345.2,3345.1,0.74872]
[1735731921842,0.29951,3345.2,3345.1,0.4492]
[1735731922846,0.74879,3345.2,3344.6,6.96812051]
[1735731923043,0.766,3345.1,3344.6,3.6353]
[1735731923246,0.29956,3344.7,3344.6,3.6353]
[1735731923445,0.29956,3344.7,3344.6,3.2078]
[1735731923743,0.766,3345.1,3344.6,3.2078]
[1735731924051,0.29956,3344.8,3344.6,3.50736]
[1735731924445,0.4231,3344.7,3344.6,3.50736]
[1735731926146,0.72266,3344.7,3344.6,3.50736]
[1735731926450,0.4231,3344.7,3344.6,3.50736]
[1735731927849,0.72266,3344.7,3344.6,3.50736]
[1735731928253,0.4231,3344.7,3344.6,3.50736]
[1735731928455,0.72266,3344.7,3344.6,3.50736]
[1735731929055,6.42776051,3345.7,3344.6,3.2078]
[1735731929253,0.29953,3345.1,3345.0,0.29953]
[1735731930155,0.4578,3345.2,3345.0,0.29953]
[1735731930355,0.4578,3345.2,3345.1,0.449]
[1735731930356,0.75732,3345.2,3345.1,0.449]
[1735731931360,0.75732,3345.2,3345.1,0.74852]
[1735731931660,0.75732,3345.2,3345.1,0.449]
[1735731932558,0.29952,3345.1,3345.0,0.29953]
[1735731932759,1.19992254,3345.9,3345.0,2.27576051]
[1735731932958,0.29947,3345.7,3345.6,0.29948]
[1735731933157,4.83362254,3345.9,3345.7,0.4412]
[1735731933353,4.40772254,3345.9,3345.8,0.29946]
[1735731933555,4.40772254,3345.9,3345.8,0.71936]
[1735731934259,4.70717254,3345.9,3345.8,0.4199]
[1735731937858,4.40772254,3345.9,3345.8,0.71936]
[1735731938067,4.40772254,3345.9,3345.8,0.4199]
[1735731938864,1.19992254,3345.9,3345.8,1.6009]
[1735731939057,1.19992254,3345.9,3345.8,1.90036]
[1735731940661,0.50052254,3345.9,3345.8,1.90036]
[1735731941062,3.2078,3347.0,3345.8,8.02298697]
[1735731941362,0.29936,3346.9,3346.8,3.2078]
[1735731941557,0.29937,3346.8,3346.7,0.4648]
[1735731943359,0.29943,3346.1,3346.0,2.27576051]
[1735731943560,1.2999,3346.7,3346.0,0.4428]
[1735731943769,0.29943,3346.1,3346.0,2.71856051]
[1735731943970,1.2999,3346.7,3346.0,2.71856051]
[1735731944161,0.29943,3346.1,3346.0,2.71856051]
[1735731944667,0.29943,3346.1,3346.0,3.17456051]
[1735731945063,0.29943,3346.2,3346.0,3.17456051]
[1735731945463,0.29943,3346.2,3346.0,3.47400051]
[1735731945863,1.2999,3346.7,3346.0,3.17456051]
[1735731946169,0.29942,3346.3,3346.0,3.47400051]
[1735731946369,1.2999,3346.7,3346.0,3.17456051]
[1735731946571,0.29942,3346.3,3346.0,3.47400051]
[1735731946968,0.29941,3346.4,3346.1,0.29943]
[1735731947267,1.2999,3346.7,3346.1,0.29943]
[1735731947467,0.2994,3346.5,3346.2,0.29942]
[1735731948068,0.2994,3346.5,3346.0,3.17456051]
[1735731948371,0.8652,3346.7,3346.3,2.27576051]
[1735731948372,0.4394,3346.7,3346.3,2.27576051]
[1735731948567,0.2994,3346.5,3346.3,2.27576051]
[1735731949166,0.4394,3346.7,3346.3,2.27576051]
[1735731949371,0.73879,3346.7,3346.4,0.29941]
[1735731949773,0.73879,3346.7,3346.5,0.4219]
[1735731950074,0.73879,3346.7,3346.6,0.448]
[1735731950677,0.73878,3346.7,3346.6,0.448]
[1735731951073,0.4394,3346.7,3346.6,0.448]
[1735731951278,0.73878,3346.7,3346.6,0.448]
[1735731951866,0.29941,3346.4,3346.1,0.29943]
[1735731952077,0.29941,3346.4,3346.2,0.29942]
[1735731952573,0.2994,3346.5,3346.2,0.29942]
[1735731952870,0.29939,3346.6,3346.3,0.29941]
[1735731953078,0.29939,3346.6,3346.1,2.0515]
[1735731953079,0.2994,3346.5,3346.2,0.29942]
[1735731953578,0.29939,3346.6,3346.3,0.29941]
[1735731954172,0.4394,3346.7,3346.1,2.0515]
[1735731954374,0.73879,3346.7,3346.4,0.2994]
[1735731954581,0.4394,3346.7,3346.4,0.2994]
[1735731954773,0.29939,3346.6,3346.4,0.2994]
[1735731954973,0.73878,3346.7,3346.4,0.29941]
[1735731955174,3.2078,3346.9,3346.3,2.27576051]
[1735731955368,3.50717,3346.9,3346.7,0.29938]
[1735731955877,3.2078,3346.9,3346.8,0.4222]
[1735731956275,3.2078,3346.9,3346.8,0.72157]
[1735731956781,3.2078,3346.9,3346.8,0.4222]
[1735731956975,3.2078,3346.9,3346.8,0.72157]
[1735731957171,3.2078,3346.9,3346.8,1.6022]
[1735731957379,0.29932,3347.4,3347.0,0.29935]
[1735731957584,0.29933,3347.3,3346.9,0.29936]
[1735731957780,3.2078,3347.5,3347.0,0.72655]
[1735731957975,0.29932,3347.4,3347.1,0.29934]
[1735731958180,0.4204,3347.9,3347.3,5.48356051]
[1735731958377,0.29929,3347.8,3347.4,1.18691]
[1735731958779,0.4204,3347.9,3347.4,0.8876]
[1735731958975,0.29929,3347.8,3347.4,1.18691]
[1735731959182,0.4204,3347.9,3347.4,0.8876]
[1735731959474,0.29928,3347.9,3347.5,0.2993]
[1735731959674,0.29928,3347.9,3347.4,0.8876]
[1735731959879,0.29928,3347.9,3347.6,0.2993]
[1735731960079,0.4652,3348.0,3347.4,0.8876]
[1735731960273,0.76447,3348.0,3347.7,0.29929]
[1735731960881,0.4652,3348.0,3347.5,1.18]
[1735731961073,0.29927,3347.9,3347.6,0.29929]
[1735731961275,0.76447,3348.0,3347.6,0.2993]
[1735731961477,0.76446,3348.0,3347.7,0.29929]
[1735731961980,0.29928,3347.8,3347.6,1.2]
[1735731962176,0.29929,3347.7,3347.6,1.2]
[1735731962979,0.29931,3347.5,3347.4,0.8876]
[1735731963274,0.29928,3347.8,3347.4,1.18691]
[1735731963576,0.29927,3347.9,3347.4,1.18691]
[1735731963883,0.4652,3348.0,3347.5,0.2993]
[1735731964180,0.29929,3347.7,3347.5,0.2993]
[1735731964483,0.4652,3348.0,3347.5,0.2993]
[1735731964781,0.2993,3347.6,3347.4,1.18691]
[1735731965175,0.8882,3348.0,3347.4,1.18691]
[1735731965176,0.2993,3347.7,3347.4,0.8876]
[1735731965374,0.29928,3347.8,3347.5,0.2993]
[1735731965680,0.29927,3347.9,3347.6,0.2993]
[1735731965911,0.29927,3347.9,3347.4,0.8876]
[1735731965912,3.2078,3348.1,3347.4,0.8876]
[1735731966180,3.2078,3348.1,3347.7,0.29929]
[1735731966484,0.29927,3348.0,3347.8,0.29928]
[1735731966682,3.2078,3348.1,3347.7,0.29928]
[1735731966878,0.29926,3348.0,3347.7,0.72118]
[1735731967183,0.29928,3347.8,3347.7,0.4219]
[1735731967591,0.29928,3347.8,3347.6,1.4993]
[1735731967876,3.2078,3348.1,3347.6,1.2]
[1735731968074,0.29929,3347.8,3347.6,1.4993]
[1735731968275,3.2078,3348.1,3347.6,1.2]
[1735731968577,0.29929,3347.7,3347.6,1.2]
[1735731970588,3.2078,3348.1,3347.4,0.8876]
[1735731970884,0.29931,3347.5,3347.4,0.8876]
[1735731971084,0.29932,3347.4,3347.3,3.2078]
[1735731971882,0.29932,3347.4,3347.0,3.17646051]
[1735731971883,0.29934,3347.1,3347.0,0.9007]
[1735731972183,0.29935,3347.0,3346.9,1.2]
[1735731973181,3.6512,3347.3,3346.7,43.07576051]
[1735731973382,0.29937,3346.8,3346.7,43.07576051]
[1735731973787,0.29937,3346.8,3346.7,40.8]
[1735731973989,0.4357,3347.0,3346.6,0.4429]
[1735731974285,0.29938,3346.7,3346.6,0.4429]
[1735731974486,0.8738,3347.0,3346.5,3.2078]
[1735731974487,0.29939,3346.6,3346.5,3.2078]
[1735731974993,3.2078,3346.9,3346.1,2.69796051]
[1735731975190,0.29942,3346.2,3346.1,3.89796051]
[1735731975583,0.29942,3346.2,3346.1,44.69796051]
[1735731978795,0.29942,3346.2,3346.1,44.99739051]
[1735731978994,0.29942,3346.2,3346.1,44.69796051]
[1735731979389,0.29942,3346.2,3346.1,44.99739051]
[1735731979986,0.74844,3346.8,3346.1,44.99739051]
[1735731979987,3.2078,3346.9,3346.1,44.69796051]
[1735731980195,3.2078,3346.9,3346.6,2.27576051]
[1735731980491,0.29936,3347.0,3346.9,0.29936]
[1735731980687,0.2993,3347.6,3347.2,0.29933]
[1735731980992,0.29933,3347.3,3347.2,3.50714]
[1735731981188,0.29933,3347.3,3347.2,3.2078]
[1735731981597,0.29933,3347.3,3347.2,44.0078]
[1735731981790,0.29933,3347.3,3347.2,3.2078]
[1735731981994,3.6539,3347.7,3347.2,3.2078]
[1735731982492,3.6539,3347.7,3347.2,3.50714]
[1735731982691,3.2078,3347.7,3347.3,2.27576051]
[1735731982885,3.5071,3347.7,3347.5,0.2993]
[1735731983089,3.2078,3347.7,3347.5,0.2993]
[1735731983487,0.9134,3348.5,3347.6,5.48356051]
[1735731983684,0.9134,3348.5,3348.1,2.27576051]
[1735731983884,0.9134,3348.5,3348.2,0.4582]
[1735731984090,3.2078,3348.6,3348.2,0.4582]
[1735731984295,0.4566,3348.9,3348.2,3.666]
[1735731984495,0.29922,3348.6,3348.3,0.29923]
[1735731984695,0.29921,3348.6,3348.3,0.29923]
[1735731984891,0.29921,3348.6,3348.2,3.666]
[1735731984892,0.29922,3348.5,3348.2,3.96524]
[1735731985097,0.29919,3348.8,3348.2,3.666]
[1735731985291,0.29921,3348.6,3348.2,3.666]
[1735731985594,0.29921,3348.6,3348.3,0.29923]
[1735731985790,0.29923,3348.4,3348.2,3.666]
[1735731985986,0.29924,3348.3,3348.2,3.2078]
[1735731986187,3.2078,3348.7,3348.1,1.2]
[1735731986392,3.2078,3348.7,3348.2,3.2078]
[1735731986599,0.29923,3348.4,3348.2,3.2078]
[1735731986896,0.29924,3348.3,3348.1,3.47576051]
[1735731987497,0.29923,3348.4,3348.1,3.77501051]
[1735731988098,3.2078,3348.7,3348.2,3.2078]
[1735731988397,0.29921,3348.6,3348.3,0.76553]
[1735731989593,4.113,3349.1,3348.3,0.4663]
[1735731989799,3.2078,3349.1,3348.4,2.27576051]
[1735731989993,3.2078,3349.1,3348.6,0.29921]
[1735731989994,0.29918,3348.9,3348.6,0.29921]
[1735731990291,0.29918,3348.9,3348.4,2.69556051]
[1735731990497,0.29918,3348.9,3348.6,0.29921]
[1735731990689,3.2078,3349.1,3348.6,0.29921]
[1735731990886,0.29917,3349.0,3348.6,0.29921]
[1735731991090,0.29919,3348.9,3348.5,0.29921]
[1735731991292,0.29919,3348.9,3348.6,0.29921]
[1735731991893,0.29917,3349.0,3348.4,2.69556051]
[1735731992101,3.2078,3349.1,3348.8,0.29919]
[1735731992502,3.2078,3349.1,3348.8,0.29918]
[1735731992796,0.29915,3349.3,3348.9,3.2078]
[1735731992993,0.29915,3349.3,3349.0,0.432]
[1735731993392,1.338,3349.6,3349.0,0.432]
[1735731993593,0.29916,3349.2,3349.0,0.432]
[1735731993999,0.29913,3349.5,3349.1,0.29916]
[1735731994195,3.2078,3349.7,3349.3,2.27576051]
[1735731994598,0.29912,3349.6,3349.3,2.27576051]
[1735731995297,3.2078,3349.7,3349.3,2.27576051]
[1735731996102,0.29914,3349.4,3349.3,2.27576051]
[1735731996794,0.29913,3349.5,3349.3,2.27576051]
[1735731997001,0.29913,3349.5,3349.3,2.57491051]
[1735731997202,0.29913,3349.5,3349.3,2.27576051]
[1735731997390,0.29913,3349.6,3349.3,2.57490051]
[1735731997593,0.29913,3349.5,3349.3,2.57490051]
[1735731998000,0.29913,3349.6,3349.3,2.57490051]
[1735731998202,3.2078,3349.7,3349.3,2.57490051]
[1735731998395,3.2078,3349.7,3349.6,2.27576051]
[1735731998701,0.2991,3349.9,3349.6,2.57488051]
[1735731998898,3.2078,3350.2,3349.7,1.6644]
[1735731999101,0.2991,3349.8,3349.7,42.4644]
[1735731999493,3.2078,3349.8,3349.1,0.4415]
[1735731999696,1.65999,3349.7,3349.1,2.1059]
[1735731999892,0.29916,3349.2,3349.1,2.1059]
[1735732000705,3.2078,3349.8,3349.1,2.1059]
[1735732000908,0.29914,3349.5,3349.2,0.29916]
[1735732001207,4.0852,3350.2,3349.3,2.27576051]
[1735732001501,0.29914,3349.4,3349.3,2.27576051]
[1735732004011,0.74772,3350.0,3349.3,2.27576051]
[1735732004214,3.2078,3350.1,3349.3,5.48356051]
[1735732004517,0.29911,3349.7,3349.6,2.27576051]
[1735732005718,0.2991,3349.9,3349.7,0.29911]
[1735732006415,0.29909,3350.0,3349.8,0.7522]
[1735732006618,0.29909,3350.0,3349.9,1.209]
[1735732007315,3.50688,3350.1,3349.9,3.78385051]
[1735732007517,3.2078,3350.1,3349.9,3.48476051]
[1735732007714,3.2078,3350.1,3349.9,3.78385051]
[1735732008018,3.50688,3350.1,3350.0,40.8]
[1735732008219,3.50688,3350.1,3350.0,42.009]
[1735732008727,3.2078,3350.1,3350.0,42.009]
[1735732009021,3.50688,3350.1,3350.0,42.009]
[1735732009415,3.50688,3350.1,3350.0,1.209]
[1735732010920,3.2078,3350.1,3349.6,2.27576051]
[1735732011221,3.2078,3350.1,3349.3,5.48356051]
[1735732011222,3.9555,3350.1,3349.3,5.48356051]
[1735732011415,0.29913,3349.5,3349.4,1.209]
[1735732013425,3.95882308,3350.1,3349.4,1.209]
[1735732013625,0.29913,3349.6,3349.5,0.4567]
[1735732015729,0.29913,3349.5,3349.4,1.209]
[1735732016619,1.3106,3349.7,3349.3,5.48356051]
[1735732016818,0.29914,3349.4,3349.1,40.8]
[1735732017023,0.2992,3348.7,3348.6,1.6584]
[1735732017218,0.2992,3348.7,3348.6,0.4494]
[1735732017415,0.2992,3348.7,3348.6,41.2494]
[1735732018125,0.2992,3348.7,3348.6,0.4494]
[1735732018627,0.2992,3348.7,3348.2,3.2078]
[1735732018628,0.29924,3348.3,3348.2,3.2078]
[1735732019426,0.29924,3348.3,3348.2,4.4168]
[1735732020324,3.2078,3348.7,3348.2,4.4168]
[1735732020526,0.29922,3348.5,3348.2,4.4168]
[1735732020725,0.29922,3348.5,3348.3,0.4481]
[1735732020925,0.29923,3348.4,3348.3,0.4481]
[1735732023127,0.29924,3348.3,3348.2,4.4218]
[1735732023828,0.29924,3348.3,3348.2,3.2078]
[1735732024733,0.29926,3348.0,3347.9,40.8]
[1735732025941,0.29928,3347.8,3347.7,1.214]
[1735732026328,0.29928,3347.8,3347.7,42.014]
[1735732026536,0.29928,3347.8,3347.7,40.8]
[1735732026735,0.2993,3347.6,3347.5,3.48976051]
[1735732026930,0.2993,3347.6,3347.5,1.214]
[1735732027237,0.2993,3347.6,3347.5,42.014]
[1735732027428,0.2993,3347.6,3347.5,40.8]
[1735732027829,0.4454,3347.8,3347.2,4.4218]
[1735732027830,0.29933,3347.3,3347.2,4.4218]
[1735732028228,0.29933,3347.3,3347.2,45.2218]
[1735732028835,0.29933,3347.3,3347.2,1.214]
[1735732030338,0.29934,3347.1,3347.0,40.8]
[1735732033727,0.4605,3347.2,3346.8,4.4218]
[1735732034041,1.20885,3347.2,3346.6,1.214]
[1735732034242,0.29938,3346.7,3346.6,1.214]
[1735732034442,1.20885,3347.2,3346.4,3.39266489]
[1735732034636,0.2994,3346.5,3346.4,4.60666489]
[1735732034939,0.2994,3346.6,3346.4,4.4218]
[1735732035130,0.2994,3346.5,3346.4,4.4218]
[1735732035534,0.2994,3346.5,3346.4,45.2218]
[1735732037137,0.2994,3346.5,3346.4,4.4218]
[1735732037443,0.2994,3346.5,3346.4,3.2078]
[1735732038742,0.29941,3346.4,3346.3,42.4769]
[1735732039138,0.29941,3346.4,3346.3,1.6769]
[1735732040243,0.4352,3346.6,3346.1,40.8]
[1735732040244,0.29942,3346.2,3346.1,40.8]
[1735732041350,0.29943,3346.1,3346.0,3.2078]
[1735732042549,0.29945,3345.9,3345.8,41.2499]
[1735732043350,0.29945,3345.9,3345.8,0.4499]
[1735732053449,4.40457,3346.2,3345.7,1.214]
[1735732053650,0.29946,3345.8,3345.7,1.214]
[1735732055144,0.4471,3346.0,3345.7,1.214]
[1735732055343,0.29946,3345.8,3345.7,1.214]
[1735732056758,0.29948,3345.6,3345.5,5.3222]
[1735732057058,0.29948,3345.6,3345.5,46.44856985]
[1735732057361,0.29948,3345.6,3345.5,4.44556985]
[1735732057752,0.29948,3345.6,3345.5,45.24556985]
[1735732059460,0.29948,3345.6,3345.5,45.24582731]
[1735732062661,0.29948,3345.6,3345.5,45.76920028]
[1735732063162,0.29948,3345.6,3345.5,45.24611757]
[1735732064364,0.29948,3345.6,3345.5,45.7693343]
[1735732064961,0.29948,3345.6,3345.5,45.76959618]
[1735732067558,0.29948,3345.6,3345.5,42.56179618]
[1735732068767,0.29948,3345.6,3345.5,42.56286686]
[1735732070463,0.29948,3345.6,3345.5,42.86235686]
[1735732070659,0.29948,3345.6,3345.5,42.56286686]
[1735732070860,0.29948,3345.6,3345.5,0.85146686]
[1735732071261,0.29948,3345.6,3345.5,0.32748163]
[1735732071565,0.29948,3345.6,3345.5,0.85183012]
[1735732072361,3.02441051,3345.9,3345.5,0.85183012]
[1735732072362,0.74868,3345.8,3345.5,0.85238298]
[1735732072666,0.29947,3345.7,3345.6,0.32783398]
[1735732072867,0.74317,3345.7,3345.6,0.32783398]
[1735732074461,0.74317,3345.7,3345.6,0.62731398]
[1735732074861,0.74317,3345.7,3345.6,0.62743593]
[1735732075263,0.4471,3346.0,3345.6,0.62743593]
[1735732075264,0.4471,3346.0,3345.6,0.32795593]
[1735732075462,1.49676,3347.1,3345.8,3.2078]
[1735732075463,3.2078,3346.6,3345.8,3.2078]
[1735732075667,0.8812,3347.0,3346.2,3.2078]
[1735732075871,0.4437,3347.0,3346.6,3.2078]
[1735732076164,3.2078,3347.1,3346.7,1.19431048]
[1735732076366,3.2078,3347.1,3347.0,0.29935]
[1735732076567,3.50714,3347.1,3346.9,0.29936]
[1735732076760,3.50715,3347.1,3346.9,0.29936]
[1735732076961,0.29936,3347.0,3346.8,41.09937]
[1735732077169,3.50715,3347.1,3346.9,0.29936]
[1735732077365,3.2078,3347.1,3346.9,0.29936]
[1735732077567,0.29935,3347.0,3346.8,41.09937]
[1735732077761,3.2078,3347.1,3346.8,40.8]
[1735732077966,3.50715,3347.1,3346.9,0.29936]
[1735732078366,3.50715,3347.1,3346.7,0.8667]
[1735732078669,3.50715,3347.1,3346.8,0.29937]
[1735732078670,0.29936,3347.0,3346.8,0.29937]
[1735732078876,0.29936,3347.0,3346.7,41.96607]
[1735732079067,0.29936,3347.0,3346.8,0.29937]
[1735732079265,0.29938,3346.7,3346.6,3.2078]
[1735732082371,3.2078,3347.1,3347.0,0.29935]
[1735732084466,3.2078,3347.1,3347.0,2.57511051]
[1735732084770,0.29931,3347.5,3347.3,0.29932]
[1735732085172,0.4636,3347.7,3347.2,1.194]
[1735732085469,0.29933,3347.3,3347.2,1.6212]
[1735732087263,0.29934,3347.2,3347.1,0.4517]
[1735732087474,0.29934,3347.1,3347.0,3.2078]
[1735732087869,0.29939,3346.6,3346.5,0.4259]
[1735732088369,0.29941,3346.4,3346.3,1.6212]
[1735732088575,0.29941,3346.4,3346.3,0.4272]
[1735732088776,3.95619,3347.0,3346.3,0.4272]
[1735732088980,3.95619,3347.0,3346.3,3.635]
[1735732089269,0.2994,3346.6,3346.4,0.2994]
[1735732090570,3.2078,3347.0,3346.3,3.635]
[1735732090770,0.29939,3346.7,3346.5,0.29939]
[1735732090973,0.29939,3346.6,3346.5,0.29939]
[1735732093363,0.29938,3346.7,3346.6,0.29938]
[1735732093969,0.29938,3346.7,3346.6,41.09938]
[1735732096274,0.29938,3346.7,3346.6,0.29938]
[1735732098078,0.29937,3346.9,3346.8,0.29937]
[1735732100082,0.423,3347.2,3346.7,0.29937]
[1735732100377,0.29937,3346.9,3346.7,0.29937]
[1735732100780,0.423,3347.2,3346.7,0.29937]
[1735732100781,0.29937,3346.8,3346.7,0.29937]
[1735732100978,0.29939,3346.7,3346.5,0.29939]
[1735732101285,0.29939,3346.7,3346.6,0.29939]
[1735732101777,0.423,3347.2,3346.4,3.89566051]
[1735732102086,0.29938,3346.7,3346.6,0.29939]
[1735732102474,0.74837,3347.1,3346.5,0.29939]
[1735732102779,0.29939,3346.7,3346.5,0.29939]
[1735732103175,5.48356051,3347.0,3346.3,3.635]
[1735732103486,0.29941,3346.4,3346.3,3.2078]
[1735732103971,0.74855,3346.3,3345.6,3.2078]
[1735732104179,3.95634,3346.4,3345.6,3.6359]
[1735732104375,0.29947,3345.7,3345.6,3.6359]
[1735732105077,0.74857,3346.2,3345.6,3.93538]
[1735732105278,0.29946,3345.8,3345.6,3.93537]
[1735732105880,0.29947,3345.7,3345.6,3.93537]
[1735732106277,0.29947,3345.7,3345.6,3.2078]
[1735732106487,0.29947,3345.7,3345.6,3.50728]
[1735732106676,0.29947,3345.7,3345.6,3.2078]
[1735732109285,0.29947,3345.7,3345.6,3.50728]
[1735732110083,0.4375,3345.9,3345.2,7.5810837]
[1735732110386,0.4375,3345.9,3345.2,7.8805937]
[1735732110387,0.29947,3345.7,3345.2,7.8805937]
[1735732110588,0.2995,3345.4,3345.2,7.8805937]
[1735732110887,0.29951,3345.3,3345.2,7.8805937]
[1735732113074,0.29951,3345.3,3345.2,3.6685]
[1735732118988,0.29954,3344.9,3344.8,45.1988]
[1735732119490,0.29954,3344.9,3344.8,45.49835]
[1735732119889,0.29954,3344.9,3344.8,44.0078]
[1735732121386,3.2078,3345.1,3344.4,3.50738]
[1735732121592,0.29958,3344.5,3344.4,3.2078]
[1735732123291,0.29959,3344.4,3344.3,0.8705]
[1735732124492,0.29959,3344.3,3344.2,1.191]
[1735732124794,0.29959,3344.3,3344.2,0.4527]
[1735732125287,0.8571,3344.6,3344.0,3.2078]
[1735732125288,0.29961,3344.1,3344.0,3.2078]
[1735732129296,0.29961,3344.1,3343.6,2.37226]
[1735732129297,0.74895,3344.5,3343.6,4.38906]
[1735732129602,0.29964,3343.9,3343.6,45.18906]
[1735732129900,0.29964,3343.9,3343.6,4.38906]
[1735732130098,0.4225,3344.3,3343.6,4.0894]
[1735732130397,0.8571,3344.6,3344.2,0.2996]
[1735732130602,1.93981,3345.2,3343.6,4.0894]
[1735732130603,0.29954,3345.0,3344.8,0.29954]
[1735732130899,3.2078,3345.5,3344.7,3.2078]
[1735732131202,0.2995,3345.4,3345.2,0.29951]
[1735732131497,0.2995,3345.4,3345.3,0.4605]
[1735732132598,0.29953,3345.0,3344.9,40.8]
[1735732133105,0.29955,3344.9,3344.6,0.29957]
[1735732133603,0.4648,3345.4,3344.6,40.8]
[1735732133804,0.74879,3345.3,3344.6,40.8]
[1735732134005,0.4648,3345.4,3344.6,40.8]
[1735732134206,0.29955,3344.9,3344.7,3.50735]
[1735732134603,0.29955,3344.8,3344.7,3.2078]
[1735732137703,0.29957,3344.6,3344.5,0.4605]
[1735732138628,3.95663,3345.1,3344.5,0.76008]
[1735732138806,3.2078,3345.1,3344.5,0.4605]
[1735732139000,3.2078,3345.1,3344.6,0.29957]
[1735732139001,0.29956,3344.7,3344.6,0.29957]
[1735732139207,0.29956,3344.7,3344.5,0.4605]
[1735732139400,0.29956,3344.7,3344.5,0.76007]
[1735732140608,0.29957,3344.6,3344.5,0.4605]
[1735732141906,0.29957,3344.6,3344.5,0.76008]
[1735732142407,0.29957,3344.7,3344.5,0.76008]
[1735732143203,0.29957,3344.6,3344.5,0.4605]
[1735732145705,2.27576051,3344.9,3344.4,3.2078]
[1735732145901,0.75768,3344.5,3344.4,3.2078]
[1735732151013,0.29961,3344.2,3344.0,4.41052]
[1735732151508,0.29961,3344.2,3344.1,0.29961]
[1735732151805,0.2996,3344.3,3344.1,0.29961]